[Event "Kvibergspelen 2018"]
[Site "Prioritet Serneke Arena, Krutvagen 2, Gothenburg, Sweden"]
[Date "2018.04.22"]
[Round "7.7"]
[White "Brynell, Stellan"]
[Black "Crevatin, Leo"]
[Result "1/2-1/2"]
[TimeControl "15 minutes + 5 seconds per move from move one (Round 1 - 4) / 90 minutes + 30 seconds per move from move one (Round 5 - 8)"]
[WhiteTitle "GM"]
[WhiteFideId "1700219"]
[BlackFideId "1726307"]
[WhiteElo "2420"]
[BlackElo "2157"]

1. e4 {[%clk 01:30:19]} {[%emt 00:00:40]} Nf6 {[%clk 01:31:00]} {[%emt
00:00:01]} 2. e5 {[%clk 01:30:28]} {[%emt 00:00:21]} Nd5 {[%clk 01:31:28]}
{[%emt 00:00:01]} 3. c4 {[%clk 01:29:54]} {[%emt 00:01:04]} Nb6 {[%clk
01:31:57]} {[%emt 00:00:02]} 4. c5 {[%clk 01:29:58]} {[%emt 00:00:25]} Nd5
{[%clk 01:32:25]} {[%emt 00:00:02]} 5. Bc4 {[%clk 01:30:19]} {[%emt 00:00:09]}
e6 {[%clk 01:32:43]} {[%emt 00:00:13]} 6. d4 {[%clk 01:30:39]} {[%emt
00:00:09]} b6 {[%clk 01:31:52]} {[%emt 00:01:22]} 7. cxb6 {[%clk 01:30:55]}
{[%emt 00:00:14]} axb6 {[%clk 01:30:36]} {[%emt 00:01:46]} 8. Nf3 {[%clk
01:31:11]} {[%emt 00:00:13]} Bb4+ {[%clk 01:29:33]} {[%emt 00:01:33]} 9. Bd2
{[%clk 01:27:27]} {[%emt 00:04:15]} Qe7 {[%clk 01:28:50]} {[%emt 00:01:13]} 10.
O-O {[%clk 01:20:06]} {[%emt 00:07:50]} Bxd2 {[%clk 01:29:09]} {[%emt
00:00:13]} 11. Bxd5 {[%clk 01:16:30]} {[%emt 00:04:05]} exd5 {[%clk 01:29:26]}
{[%emt 00:00:12]} 12. Qxd2 {[%clk 01:16:52]} {[%emt 00:00:08]} O-O {[%clk
01:29:00]} {[%emt 00:00:57]} 13. Nc3 {[%clk 01:17:05]} {[%emt 00:00:16]} c6
{[%clk 01:28:30]} {[%emt 00:01:01]} 14. Qf4 {[%clk 01:11:53]} {[%emt 00:05:41]}
Na6 {[%clk 01:27:01]} {[%emt 00:01:59]} 15. Rfe1 {[%clk 01:03:20]} {[%emt
00:09:03]} Nc7 {[%clk 01:25:24]} {[%emt 00:02:08]} 16. Qg3 {[%clk 00:47:04]}
{[%emt 00:16:45]} Ne6 {[%clk 01:23:20]} {[%emt 00:02:33]} 17. a3 {[%clk
00:41:43]} {[%emt 00:05:52]} Ba6 {[%clk 01:20:25]} {[%emt 00:03:25]} 18. Rad1
{[%clk 00:40:29]} {[%emt 00:01:43]} Rad8 {[%clk 01:17:53]} {[%emt 00:03:03]} 19.
Nh4 {[%clk 00:37:49]} {[%emt 00:03:09]} f5 {[%clk 01:16:49]} {[%emt 00:01:34]}
20. exf6 {[%clk 00:37:35]} {[%emt 00:00:44]} Qxf6 {[%clk 01:16:55]} {[%emt
00:00:24]} 21. Nf3 {[%clk 00:34:39]} {[%emt 00:03:26]} d6 {[%clk 01:08:30]}
{[%emt 00:08:55]} 22. Re3 {[%clk 00:33:34]} {[%emt 00:01:35]} Rfe8 {[%clk
01:07:51]} {[%emt 00:01:10]} 23. Rde1 {[%clk 00:33:32]} {[%emt 00:00:32]} b5
{[%clk 01:06:28]} {[%emt 00:01:54]} 24. Ng5 {[%clk 00:28:09]} {[%emt 00:05:52]}
Nc7 {[%clk 00:59:26]} {[%emt 00:07:32]} 25. Rxe8+ {[%clk 00:28:34]} {[%emt
00:00:05]} Rxe8 {[%clk 00:59:43]} {[%emt 00:00:13]} 26. Rxe8+ {[%clk 00:28:56]}
{[%emt 00:00:09]} Nxe8 {[%clk 01:00:12]} {[%emt 00:00:01]} 27. Qe3 {[%clk
00:29:16]} {[%emt 00:00:09]} Nc7 {[%clk 01:00:00]} {[%emt 00:00:42]} 28. h3
{[%clk 00:29:31]} {[%emt 00:00:15]} Bc8 {[%clk 00:58:32]} {[%emt 00:01:57]} 29.
Nf3 {[%clk 00:28:02]} {[%emt 00:01:59]} Bf5 {[%clk 00:57:09]} {[%emt 00:01:54]}
30. g4 {[%clk 00:25:32]} {[%emt 00:02:59]} Bg6 {[%clk 00:51:33]} {[%emt
00:06:06]} 31. Kg2 {[%clk 00:25:47]} {[%emt 00:00:16]} Ne6 {[%clk 00:51:30]}
{[%emt 00:00:33]} 32. Kg3 {[%clk 00:26:08]} {[%emt 00:00:08]} h5 {[%clk
00:49:59]} {[%emt 00:02:01]} 33. Ne2 {[%clk 00:23:20]} {[%emt 00:03:17]} hxg4
{[%clk 00:49:01]} {[%emt 00:01:28]} 34. hxg4 {[%clk 00:23:44]} {[%emt
00:00:07]} Be4 {[%clk 00:47:39]} {[%emt 00:01:52]} 35. Nf4 {[%clk 00:23:12]}
{[%emt 00:01:02]} Nxf4 {[%clk 00:42:22]} {[%emt 00:05:48]} 36. Qxf4 {[%clk
00:23:38]} {[%emt 00:00:04]} c5 {[%clk 00:41:21]} {[%emt 00:01:31]} 37. Qxf6
{[%clk 00:21:11]} {[%emt 00:02:57]} gxf6 {[%clk 00:41:50]} {[%emt 00:00:01]} 38.
Kf4 {[%clk 00:20:56]} {[%emt 00:00:44]} Kf7 {[%clk 00:41:09]} {[%emt 00:01:12]}
39. Nd2 {[%clk 00:20:31]} {[%emt 00:00:55]} Bc2 {[%clk 00:40:42]} {[%emt
00:00:57]} 40. Ke3 {[%clk 00:17:42]} {[%emt 00:03:19]} Ke6 {[%clk 00:39:40]}
{[%emt 00:01:30]} 41. f3 {[%clk 00:17:18]} {[%emt 00:00:56]} Bd1 {[%clk
00:37:44]} {[%emt 00:02:26]} 42. Kd3 {[%clk 00:17:43]} {[%emt 00:00:05]} Kf7
{[%clk 00:37:38]} {[%emt 00:00:35]} 43. Ke3 {[%clk 00:17:22]} {[%emt 00:00:51]}
Ke6 {[%clk 00:37:24]} {[%emt 00:00:44]} 44. b4 {[%clk 00:17:41]} {[%emt
00:00:12]} cxd4+ {[%clk 00:36:04]} {[%emt 00:01:50]} 45. Kxd4 {[%clk 00:18:04]}
{[%emt 00:00:07]} Be2 {[%clk 00:35:34]} {[%emt 00:01:01]} 46. Ke3 {[%clk
00:18:01]} {[%emt 00:00:32]} Bd1 {[%clk 00:35:48]} {[%emt 00:00:16]} 47. f4
{[%clk 00:12:17]} {[%emt 00:06:15]} Bxg4 {[%clk 00:34:44]} {[%emt 00:01:34]} 48.
Nb3 {[%clk 00:12:34]} {[%emt 00:00:13]} Ke7 {[%clk 00:33:31]} {[%emt 00:01:43]}
49. Nd4 {[%clk 00:13:00]} {[%emt 00:00:05]} Bd7 {[%clk 00:33:39]} {[%emt
00:00:23]} 50. Ne2 {[%clk 00:11:57]} {[%emt 00:01:32]} f5 {[%clk 00:28:56]}
{[%emt 00:05:13]} 51. Kd4 {[%clk 00:11:10]} {[%emt 00:01:17]} Bc6 {[%clk
00:29:05]} {[%emt 00:00:21]} 52. Nc3 {[%clk 00:10:34]} {[%emt 00:01:05]} Ke6
{[%clk 00:29:29]} {[%emt 00:00:07]} 53. Nd1 {[%clk 00:10:51]} {[%emt 00:00:12]}
Bd7 {[%clk 00:29:10]} {[%emt 00:00:49]} 54. Ne3 {[%clk 00:09:59]} {[%emt
00:01:23]} Bc6 {[%clk 00:29:33]} {[%emt 00:00:07]} 55. Kc3 {[%clk 00:10:07]}
{[%emt 00:00:22]} Bd7 {[%clk 00:29:28]} {[%emt 00:00:35]} 56. Nc2 {[%clk
00:10:31]} {[%emt 00:00:06]} Ke7 {[%clk 00:29:18]} {[%emt 00:00:39]} 57. Nd4
{[%clk 00:10:54]} {[%emt 00:00:09]} Kf6 {[%clk 00:28:55]} {[%emt 00:00:51]} 58.
a4 {[%clk 00:07:10]} {[%emt 00:04:16]} bxa4 {[%clk 00:27:32]} {[%emt 00:01:54]}
59. b5 {[%clk 00:07:38]} {[%emt 00:00:01]} Bxb5 {[%clk 00:23:56]} {[%emt
00:04:06]} 60. Nxb5 {[%clk 00:08:03]} {[%emt 00:00:05]} Kg6 {[%clk 00:24:23]}
{[%emt 00:00:03]} 61. Nc7 {[%clk 00:04:02]} {[%emt 00:04:30]} Kh5 {[%clk
00:24:36]} {[%emt 00:00:17]} 62. Nxd5 {[%clk 00:01:38]} {[%emt 00:02:54]} Kg4
{[%clk 00:25:01]} {[%emt 00:00:05]} 63. Kb4 {[%clk 00:01:10]} {[%emt 00:00:58]}
Kf3 {[%clk 00:25:23]} {[%emt 00:00:08]} 64. Kxa4 {[%clk 00:01:36]} {[%emt
00:00:05]} Ke4 {[%clk 00:25:50]} {[%emt 00:00:03]} 65. Ne7 {[%clk 00:01:54]}
{[%emt 00:00:12]} Kxf4 {[%clk 00:26:14]} {[%emt 00:00:06]} 66. Kb3 {[%clk
00:02:11]} {[%emt 00:00:12]} Ke4 {[%clk 00:26:29]} {[%emt 00:00:15]} 67. Kc3
{[%clk 00:02:33]} {[%emt 00:00:09]} f4 {[%clk 00:26:48]} {[%emt 00:00:10]} 68.
Kd2 {[%clk 00:02:47]} {[%emt 00:00:17]} Kf3 {[%clk 00:27:03]} {[%emt 00:00:15]}
69. Nd5 {[%clk 00:02:55]} {[%emt 00:00:22]} Kg3 {[%clk 00:27:26]} {[%emt
00:00:07]} 70. Nxf4 {[%clk 00:02:57]} {[%emt 00:00:28]} Kxf4 {[%clk 00:27:54]}
{[%emt 00:00:01]} 71. Kd3 {[%clk 00:03:20]} {[%emt 00:00:07]} Ke5 {[%clk
00:28:14]} {[%emt 00:00:10]} 72. Ke3 {[%clk 00:03:46]} {[%emt 00:00:04]} d5
{[%clk 00:28:41]} {[%emt 00:00:03]} 73. Kd3 {[%clk 00:04:12]} {[%emt 00:00:04]}
d4 {[%clk 00:29:08]} {[%emt 00:00:03]} 74. Kd2 {[%clk 00:04:39]} {[%emt
00:00:04]} Ke4 {[%clk 00:29:35]} {[%emt 00:00:03]} 75. Ke2 {[%clk 00:05:05]}
{[%emt 00:00:04]} d3+ {[%clk 00:30:01]} {[%emt 00:00:03]} 76. Kd2 {[%clk
00:05:30]} {[%emt 00:00:05]} Kd4 {[%clk 00:30:27]} {[%emt 00:00:04]} 77. Kd1
{[%clk 00:05:58]} {[%emt 00:00:02]} Kc3 {[%clk 00:30:48]} {[%emt 00:00:10]} 78.
Kc1 {[%clk 00:06:26]} {[%emt 00:00:02]} d2+ {[%clk 00:31:16]} {[%emt 00:00:03]}
79. Kd1 {[%clk 00:06:52]} {[%emt 00:00:03]} Kd3 {[%clk 00:31:35]} {[%emt
00:00:10]} 1/2-1/2

[Event "Kvibergspelen 2018"]
[Site "Prioritet Serneke Arena, Krutvagen 2, Gothenburg, Sweden"]
[Date "2018.04.22"]
[Round "7.8"]
[White "Bjorklund, Thomas"]
[Black "Arman, Deniz"]
[Result "0-1"]
[TimeControl "15 minutes + 5 seconds per move from move one (Round 1 - 4) / 90 minutes + 30 seconds per move from move one (Round 5 - 8)"]
[BlackTitle "FM"]
[WhiteFideId "1724576"]
[BlackFideId "6302106"]
[WhiteElo "2156"]
[BlackElo "2359"]

1. e4 {[%clk 01:30:22]} {[%emt 00:00:38]} c5 {[%clk 01:22:15]} {[%emt
00:08:45]} 2. c3 {[%clk 01:29:39]} {[%emt 00:01:13]} d5 {[%clk 01:12:38]}
{[%emt 00:10:07]} 3. Bb5+ {[%clk 01:25:19]} {[%emt 00:04:50]} Bd7 {[%clk
01:00:40]} {[%emt 00:12:28]} 4. Bxd7+ {[%clk 01:19:09]} {[%emt 00:06:40]} Qxd7
{[%clk 01:00:56]} {[%emt 00:00:14]} 5. exd5 {[%clk 01:18:43]} {[%emt 00:00:56]}
Qxd5 {[%clk 01:00:38]} {[%emt 00:00:47]} 6. Qf3 {[%clk 01:18:00]} {[%emt
00:01:13]} Qd7 {[%clk 00:56:17]} {[%emt 00:04:51]} 7. Ne2 {[%clk 01:14:53]}
{[%emt 00:03:36]} Nc6 {[%clk 00:55:28]} {[%emt 00:01:20]} 8. d4 {[%clk
01:09:22]} {[%emt 00:06:01]} Nf6 {[%clk 00:46:57]} {[%emt 00:09:02]} 9. O-O
{[%clk 00:56:28]} {[%emt 00:13:23]} cxd4 {[%clk 00:42:12]} {[%emt 00:05:15]} 10.
Nxd4 {[%clk 00:55:14]} {[%emt 00:01:44]} Nxd4 {[%clk 00:39:29]} {[%emt
00:03:13]} 11. cxd4 {[%clk 00:55:32]} {[%emt 00:00:12]} Qd5 {[%clk 00:25:34]}
{[%emt 00:14:25]} 12. Qf4 {[%clk 00:49:20]} {[%emt 00:06:41]} e6 {[%clk
00:22:40]} {[%emt 00:03:24]} 13. Nc3 {[%clk 00:44:48]} {[%emt 00:05:02]} Qd7
{[%clk 00:22:37]} {[%emt 00:00:33]} 14. Qf3 {[%clk 00:40:19]} {[%emt 00:04:59]}
Be7 {[%clk 00:18:15]} {[%emt 00:04:52]} 15. Bg5 {[%clk 00:37:31]} {[%emt
00:03:17]} Nd5 {[%clk 00:13:59]} {[%emt 00:04:47]} 16. Nxd5 {[%clk 00:31:44]}
{[%emt 00:06:17]} Qxd5 {[%clk 00:07:42]} {[%emt 00:06:47]} 17. Qxd5 {[%clk
00:30:28]} {[%emt 00:01:47]} exd5 {[%clk 00:08:09]} {[%emt 00:00:03]} 18. Bxe7
{[%clk 00:30:20]} {[%emt 00:00:37]} Kxe7 {[%clk 00:08:35]} {[%emt 00:00:03]} 19.
f3 {[%clk 00:30:40]} {[%emt 00:00:10]} Rac8 {[%clk 00:07:40]} {[%emt 00:01:26]}
20. Rac1 {[%clk 00:31:03]} {[%emt 00:00:06]} Kd6 {[%clk 00:07:22]} {[%emt
00:00:48]} 21. Kf2 {[%clk 00:31:16]} {[%emt 00:00:17]} Rc4 {[%clk 00:07:37]}
{[%emt 00:00:15]} 22. Ke3 {[%clk 00:30:25]} {[%emt 00:01:21]} Rhc8 {[%clk
00:07:50]} {[%emt 00:00:18]} 23. Rxc4 {[%clk 00:29:34]} {[%emt 00:01:21]} dxc4
{[%clk 00:08:15]} {[%emt 00:00:04]} 24. Kd2 {[%clk 00:29:16]} {[%emt 00:00:48]}
Re8 {[%clk 00:07:35]} {[%emt 00:01:09]} 25. Rc1 {[%clk 00:29:14]} {[%emt
00:00:32]} Kd5 {[%clk 00:08:00]} {[%emt 00:00:06]} 26. b3 {[%clk 00:29:39]}
{[%emt 00:00:05]} b5 {[%clk 00:06:45]} {[%emt 00:01:45]} 27. bxc4+ {[%clk
00:28:24]} {[%emt 00:01:46]} bxc4 {[%clk 00:07:11]} {[%emt 00:00:04]} 28. Rb1
{[%clk 00:28:46]} {[%emt 00:00:07]} Re7 {[%clk 00:07:21]} {[%emt 00:00:20]} 29.
Kc3 {[%clk 00:27:31]} {[%emt 00:01:46]} Re3+ {[%clk 00:07:45]} {[%emt
00:00:06]} 30. Kd2 {[%clk 00:27:54]} {[%emt 00:00:06]} Ra3 {[%clk 00:06:59]}
{[%emt 00:01:16]} 31. Rb7 {[%clk 00:27:31]} {[%emt 00:00:55]} Rxa2+ {[%clk
00:07:23]} {[%emt 00:00:05]} 32. Kc3 {[%clk 00:27:47]} {[%emt 00:00:13]} Ra3+
{[%clk 00:07:21]} {[%emt 00:00:33]} 33. Kc2 {[%clk 00:27:14]} {[%emt 00:01:03]}
Kxd4 {[%clk 00:05:58]} {[%emt 00:01:52]} 34. Rd7+ {[%clk 00:27:31]} {[%emt
00:00:13]} Ke3 {[%clk 00:05:50]} {[%emt 00:00:38]} 35. Re7+ {[%clk 00:26:54]}
{[%emt 00:01:08]} Kd4 {[%clk 00:05:47]} {[%emt 00:00:33]} 36. Rd7+ {[%clk
00:27:20]} {[%emt 00:00:04]} Ke5 {[%clk 00:05:32]} {[%emt 00:00:44]} 37. Rxf7
{[%clk 00:27:35]} {[%emt 00:00:16]} Ra2+ {[%clk 00:05:59]} {[%emt 00:00:03]} 38.
Kc3 {[%clk 00:27:57]} {[%emt 00:00:08]} Rxg2 {[%clk 00:06:26]} {[%emt
00:00:03]} 39. Rxa7 {[%clk 00:28:10]} {[%emt 00:00:18]} Kf6 {[%clk 00:06:22]}
{[%emt 00:00:33]} 40. Kxc4 {[%clk 00:27:43]} {[%emt 00:00:58]} Rxh2 {[%clk
00:04:07]} {[%emt 00:02:45]} 41. Kd3 {[%clk 00:27:41]} {[%emt 00:00:32]} h5
{[%clk 00:02:10]} {[%emt 00:02:28]} 42. Ke3 {[%clk 00:24:53]} {[%emt 00:03:18]}
Rg2 {[%clk 00:01:22]} {[%emt 00:01:16]} 43. Ra5 {[%clk 00:21:53]} {[%emt
00:03:31]} g6 {[%clk 00:01:31]} {[%emt 00:00:21]} 44. Ra6+ {[%clk 00:21:17]}
{[%emt 00:01:06]} Kg5 {[%clk 00:01:27]} {[%emt 00:00:33]} 45. Ra4 {[%clk
00:17:22]} {[%emt 00:04:26]} h4 {[%clk 00:00:54]} {[%emt 00:01:04]} 46. Ra5+
{[%clk 00:13:40]} {[%emt 00:04:12]} Kf6 {[%clk 00:01:05]} {[%emt 00:00:19]} 47.
Ra4 {[%clk 00:10:21]} {[%emt 00:03:49]} g5 {[%clk 00:00:56]} {[%emt 00:00:39]}
48. Ra6+ {[%clk 00:10:02]} {[%emt 00:00:49]} Kf5 {[%clk 00:01:02]} {[%emt
00:00:24]} 49. Rh6 {[%clk 00:09:15]} {[%emt 00:01:16]} Ra2 {[%clk 00:00:50]}
{[%emt 00:00:42]} 50. Rh8 {[%clk 00:09:30]} {[%emt 00:00:15]} Ra3+ {[%clk
00:00:49]} {[%emt 00:00:31]} 51. Kf2 {[%clk 00:09:52]} {[%emt 00:00:08]} Ra2+
{[%clk 00:01:14]} {[%emt 00:00:05]} 52. Ke3 {[%clk 00:10:18]} {[%emt 00:00:04]}
Rb2 {[%clk 00:00:44]} {[%emt 00:01:00]} 53. Rh6 {[%clk 00:09:24]} {[%emt
00:01:23]} Rh2 {[%clk 00:00:44]} {[%emt 00:00:31]} 54. Ra6 {[%clk 00:08:29]}
{[%emt 00:01:25]} Rh1 {[%clk 00:00:50]} {[%emt 00:00:24]} 55. Rh6 {[%clk
00:07:51]} {[%emt 00:01:08]} Re1+ {[%clk 00:00:40]} {[%emt 00:00:40]} 56. Kf2
{[%clk 00:08:03]} {[%emt 00:00:17]} Re8 {[%clk 00:01:07]} {[%emt 00:00:03]} 57.
Ra6 {[%clk 00:06:45]} {[%emt 00:01:49]} Re6 {[%clk 00:01:17]} {[%emt 00:00:20]}
58. Ra8 {[%clk 00:06:34]} {[%emt 00:00:41]} Rb6 {[%clk 00:00:38]} {[%emt
00:01:09]} 59. Rh8 {[%clk 00:04:48]} {[%emt 00:02:16]} Rb2+ {[%clk 00:00:51]}
{[%emt 00:00:17]} 60. Ke3 {[%clk 00:05:09]} {[%emt 00:00:09]} Rb3+ {[%clk
00:00:46]} {[%emt 00:00:35]} 61. Kf2 {[%clk 00:05:27]} {[%emt 00:00:12]} Rb4
{[%clk 00:00:55]} {[%emt 00:00:21]} 62. Rh6 {[%clk 00:04:31]} {[%emt 00:01:25]}
Rc4 {[%clk 00:01:14]} {[%emt 00:00:12]} 63. Ra6 {[%clk 00:02:08]} {[%emt
00:02:53]} Rc2+ {[%clk 00:01:07]} {[%emt 00:00:37]} 64. Ke3 {[%clk 00:02:17]}
{[%emt 00:00:21]} h3 {[%clk 00:01:22]} {[%emt 00:00:15]} 65. Rh6 {[%clk
00:01:36]} {[%emt 00:01:11]} h2 {[%clk 00:01:48]} {[%emt 00:00:04]} 66. Rh8
{[%clk 00:01:40]} {[%emt 00:00:27]} Rg2 {[%emt 00:02:18]} 0-1

[Event "Kvibergspelen 2018"]
[Site "Prioritet Serneke Arena, Krutvagen 2, Gothenburg, Sweden"]
[Date "2018.04.22"]
[Round "7.9"]
[White "Johansson, Gunnar"]
[Black "Rydstrom, Tom"]
[Result "1-0"]
[TimeControl "15 minutes + 5 seconds per move from move one (Round 1 - 4) / 90 minutes + 30 seconds per move from move one (Round 5 - 8)"]
[BlackTitle "FM"]
[WhiteFideId "1703501"]
[BlackFideId "1714830"]
[WhiteElo "2212"]
[BlackElo "2357"]

1. d4 {[%clk 01:30:57]} {[%emt 00:00:02]} g6 {[%clk 01:30:30]} {[%emt
00:00:29]} 2. e4 {[%clk 01:30:54]} {[%emt 00:00:34]} Bg7 {[%clk 01:30:59]}
{[%emt 00:00:02]} 3. c4 {[%clk 01:31:12]} {[%emt 00:00:12]} Nc6 {[%clk
01:30:38]} {[%emt 00:00:51]} 4. Nf3 {[%clk 01:28:05]} {[%emt 00:03:37]} e5
{[%clk 01:30:40]} {[%emt 00:00:28]} 5. dxe5 {[%clk 01:28:10]} {[%emt 00:00:25]}
Nxe5 {[%clk 01:30:53]} {[%emt 00:00:17]} 6. Nxe5 {[%clk 01:28:10]} {[%emt
00:00:30]} Bxe5 {[%clk 01:31:20]} {[%emt 00:00:03]} 7. Be2 {[%clk 01:28:28]}
{[%emt 00:00:42]} Qh4 {[%clk 01:26:08]} {[%emt 00:06:12]} 8. Qd3 {[%clk
01:22:31]} {[%emt 00:06:27]} d6 {[%clk 01:26:12]} {[%emt 00:00:26]} 9. g3
{[%clk 01:13:52]} {[%emt 00:09:09]} Qe7 {[%clk 01:09:13]} {[%emt 00:17:31]} 10.
Nc3 {[%clk 01:07:48]} {[%emt 00:06:33]} c6 {[%clk 01:01:26]} {[%emt 00:08:17]}
11. Bd2 {[%clk 01:00:59]} {[%emt 00:07:20]} Be6 {[%clk 00:51:36]} {[%emt
00:10:20]} 12. O-O {[%clk 00:53:26]} {[%emt 00:08:03]} f5 {[%clk 00:50:10]}
{[%emt 00:01:56]} 13. f4 {[%clk 00:42:58]} {[%emt 00:10:57]} Bg7 {[%clk
00:50:24]} {[%emt 00:00:16]} 14. Bf3 {[%clk 00:41:49]} {[%emt 00:01:39]} Nf6
{[%clk 00:47:24]} {[%emt 00:03:31]} 15. Rfe1 {[%clk 00:41:26]} {[%emt
00:00:52]} O-O-O {[%clk 00:43:57]} {[%emt 00:03:58]} 16. exf5 {[%clk 00:39:19]}
{[%emt 00:02:38]} gxf5 {[%clk 00:44:23]} {[%emt 00:00:03]} 17. Qe3 {[%clk
00:36:49]} {[%emt 00:03:00]} Rde8 {[%clk 00:44:04]} {[%emt 00:00:50]} 18. Qxa7
{[%clk 00:37:02]} {[%emt 00:00:16]} Qc7 {[%clk 00:40:53]} {[%emt 00:03:42]} 19.
b3 {[%clk 00:33:04]} {[%emt 00:04:28]} Nd7 {[%clk 00:40:31]} {[%emt 00:00:53]}
20. Rad1 {[%clk 00:29:50]} {[%emt 00:03:44]} h5 {[%clk 00:40:34]} {[%emt
00:00:26]} 21. Na4 {[%clk 00:28:50]} {[%emt 00:01:29]} Qb8 {[%clk 00:37:02]}
{[%emt 00:04:03]} 22. Qxb8+ {[%clk 00:27:36]} {[%emt 00:01:44]} Kxb8 {[%clk
00:36:39]} {[%emt 00:00:54]} 23. Bb4 {[%clk 00:27:37]} {[%emt 00:00:28]} d5
{[%clk 00:34:58]} {[%emt 00:02:10]} 24. cxd5 {[%clk 00:27:31]} {[%emt
00:00:37]} Bxd5 {[%clk 00:35:07]} {[%emt 00:00:22]} 25. Bxd5 {[%clk 00:27:40]}
{[%emt 00:00:21]} cxd5 {[%clk 00:35:30]} {[%emt 00:00:07]} 26. Rxd5 {[%clk
00:26:14]} {[%emt 00:01:56]} Rxe1+ {[%clk 00:31:54]} {[%emt 00:04:05]} 27. Bxe1
{[%clk 00:26:27]} {[%emt 00:00:16]} Kc7 {[%clk 00:32:19]} {[%emt 00:00:06]} 28.
Rxf5 {[%clk 00:25:51]} {[%emt 00:01:06]} 1-0